lending/lending_fUSD_20250719
["ID","MTS","AMOUNT","RATE_DAILY","PERIOD"]
[373299527,1752933040807,-14382.85620892,0.00017699,2]
[373299528,1752933040817,-17535.34689964,0.00017735,2]
[373299529,1752933040826,-261.75,0.00017746,2]
[373299530,1752933040836,-1680.0,0.00017762,2]
[373299531,1752933040847,-421.98,0.0001783,2]
[373299532,1752933040856,-800.0,0.000179,3]
[373299533,1752933040865,-1000.0,0.00017907,2]
[373299534,1752933040875,-226.93566903,0.00017958,2]
[373299535,1752933040884,-14382.85620892,0.00017965,2]
[373299536,1752933040897,-182.45702438,0.00017968,2]
[373299537,1752933040906,-165.33705299,0.00017973,2]
[373299538,1752933040915,-500.0,0.00017973,2]
[373299539,1752933040925,-500.0,0.00017973,2]
[373299540,1752933040935,-500.0,0.00017973,2]
[373299541,1752933040944,-159.68,0.00017973,2]
[373299542,1752933040953,-159.92024077,0.00017973,2]
[373299543,1752933040963,-180.09640871,0.00017973,2]
[373299544,1752933040974,-500.0,0.00017973,2]
[373299545,1752933040984,-500.0,0.00017973,2]
[373299546,1752933040993,-500.0,0.00017973,2]
[373299547,1752933041002,-162.08715134,0.00017973,2]
[373299548,1752933041012,-502.22203102,0.00017973,2]
[373299549,1752933041023,-612.72229141,0.00017973,2]
[373299550,1752933041033,-505.1881601,0.00017973,2]
[373299551,1752933041042,-501.24187094,0.00017973,2]
[373299552,1752933041053,-500.0,0.00017973,2]
[373299553,1752933041062,-500.0,0.00017973,2]
[373299554,1752933041072,-500.0,0.00017973,2]
[373299555,1752933041081,-500.0,0.00017973,2]
[373299556,1752933041091,-500.0,0.00017973,2]
[373299557,1752933041101,-500.50158795,0.00017973,2]
[373299558,1752933041110,-335.03225348,0.00017973,2]
[373299559,1752933041119,-500.0,0.00017973,2]
[373299560,1752933041129,-500.0,0.00017973,2]
[373299561,1752933041138,-500.0,0.00017973,2]
[373299562,1752933041147,-500.0,0.00017973,2]
[373299563,1752933041156,-400.39375762,0.00017973,2]
[373299564,1752933041165,-501.75123061,0.00017973,2]
[373299565,1752933041175,-500.0,0.00017973,2]
[373299566,1752933041183,-500.0,0.00017973,2]
[373299567,1752933041193,-500.0,0.00017973,2]
[373299568,1752933041202,-500.0,0.00017973,2]
[373299569,1752933041211,-500.0,0.00017973,2]
[373299570,1752933041220,-500.0,0.00017973,2]
[373299571,1752933041230,-150.27510418,0.00018,2]
[373299572,1752933041239,-294.95757257,0.00018,2]
[373299573,1752933041248,-217.92720885,0.00018,2]
[373299574,1752933041257,-155695.99233234,0.00018,2]
[373299575,1752933041270,-381.61401422,0.00018,2]
[373299591,1752933043000,-4124.62885104,0.00018,2]
[373299592,1752933043012,-52099.22103246,0.00018,2]
[373299593,1752933043323,-522.28411441,0.00018,2]
[373299594,1752933043434,-3421.00001,0.00018,2]
[373299596,1752933046247,-551.77739921,0.00018,2]
[373299597,1752933046274,-2360.10573068,0.00018,2]
[373299611,1752933112015,472.68,0.00030136,120]
[373299612,1752933140895,500.0,0.0003,120]
[373299613,1752933157197,500.0,0.0003,120]
[373299614,1752933177830,500.0,0.0003,120]
[373299615,1752933189116,503.5417377,0.0003013,120]
[373299616,1752933193919,500.0,0.0003,120]
[373299617,1752933225286,500.0,0.0003,120]
[373299618,1752933244503,500.0,0.0003,120]
[373299619,1752933264041,500.0,0.0003,120]
[373299620,1752933284468,500.0,0.0003,120]
[373299621,1752933303369,500.0,0.0003,120]
[373299622,1752933318303,500.0,0.0003,120]
[373299623,1752933322687,3782.72,0.00030137,120]
[373299624,1752933334396,500.0,0.0003,120]
[373299625,1752933355332,500.0,0.0003,120]
[373299626,1752933370615,500.0,0.0003,120]
[373299627,1752933396418,500.0,0.0003,120]
[373299628,1752933413250,500.0,0.0003,120]
[373299629,1752933428850,500.0,0.0003,120]
[373299630,1752933447643,500.0,0.0003,120]
[373299631,1752933469029,500.0,0.0003,120]
[373299632,1752933486608,500.0,0.0003,120]
[373299633,1752933501571,13388.77,0.00030137,120]
[373299634,1752933503921,500.0,0.0003,120]
[373299635,1752933519975,500.0,0.0003,120]
[373299636,1752933521243,1307.3982709,0.000301,120]
[373299637,1752933540649,500.0,0.0003,120]
[373299638,1752933567739,500.0,0.0003,120]
[373299639,1752933584217,500.0,0.0003,120]
[373299640,1752933589469,1063.26,0.00030137,120]
[373299641,1752933609235,500.0,0.0003,120]
[373299642,1752933618146,250.0,0.00015,2]
[373299643,1752933622655,2000.0,0.00016699,120]
[373299644,1752933625922,500.0,0.0003,120]
[373299645,1752933641362,500.0,0.0003,120]
[373299646,1752933659485,500.0,0.0003,120]
[373299647,1752933666609,172.07498793,0.00015,2]
[373299648,1752933666746,172.07498793,0.00015,2]
[373299649,1752933669407,152.38182807,0.00015,2]
[373299650,1752933669444,151.0,0.00015,2]
[373299651,1752933671814,151.0,0.00015,2]
[373299653,1752933672851,271.58329311,0.00015,2]
[373299654,1752933677125,261.91,0.00013699,2]
[373299655,1752933679340,500.0,0.0003,120]
[373299656,1752933700780,500.0,0.0003,120]
[373299657,1752933720819,500.0,0.0003,120]
[373299658,1752933738439,500.0,0.0003,120]
[373299659,1752933756830,500.0,0.0003,120]
[373299660,1752933774331,500.0,0.0003,120]
[373299661,1752933793077,500.0,0.0003,120]
[373299662,1752933814282,500.0,0.0003,120]
[373299663,1752933887484,2000.0,0.00029863,120]
[373299667,1752934019951,157.22,0.00024828,120]
[373299668,1752934030103,163.81252711,0.000301,120]
[373299669,1752934055758,24568.80042458,0.0003,120]
[373299670,1752934078878,505.0,0.00015328,2]
[373299674,1752934097384,500.0,8.2e-07,120]
[373299675,1752934106411,500.0,8.2e-07,120]
[373299676,1752934113775,500.0,8.2e-07,120]
[373299677,1752934117594,11000.0,0.0003013,120]
[373299678,1752934121167,500.0,8.2e-07,120]
[373299679,1752934127799,500.0,8.2e-07,120]
[373299680,1752934134426,500.0,8.2e-07,120]
[373299681,1752934143407,500.0,8.2e-07,120]
[373299682,1752934150303,500.0,8.2e-07,120]
[373299683,1752934158353,500.0,8.2e-07,120]
[373299684,1752934165062,500.0,8.2e-07,120]
[373299685,1752934171939,500.0,8.2e-07,120]
[373299686,1752934179853,450.0,8.2e-07,120]
[373299687,1752934201544,334.89304078,0.00015956,2]
[373299688,1752934201566,2416.10695922,0.00015956,2]
[373299689,1752934228408,1496.0,0.0002609,120]
[373299690,1752934228853,1496.0,0.0002608,120]
[373299691,1752934229384,1496.0,0.0002607,120]
[373299692,1752934229820,1496.0,0.0002979,120]
[373299693,1752934230838,1496.0,0.0002978,120]
[373299694,1752934231278,1496.0,0.0002977,120]
[373299696,1752934232200,-165.06,0.00016124,2]
[373299697,1752934232209,-319.28,0.00016482,2]
[373299698,1752934232219,-250.0,0.00016487,2]
[373299699,1752934232229,-319.28,0.00016491,2]
[373299700,1752934232238,-319.28,0.000165,2]
[373299701,1752934232247,-505.0,0.00016503,3]
[373299702,1752934232256,-319.28,0.00016508,2]
[373299703,1752934232265,-319.28,0.00016517,2]
[373299704,1752934232275,-319.28,0.00016526,2]
[373299705,1752934232284,-889.78,0.00016534,2]
[373299706,1752934232293,-319.28,0.00016534,2]
[373299707,1752934232303,-319.28,0.00016543,2]
[373299708,1752934232312,-666.0,0.00016545,2]
[373299709,1752934232321,-319.28,0.00016552,2]
[373299710,1752934232330,-157.22,0.00016552,2]
[373299711,1752934232340,-319.28,0.0001656,2]
[373299712,1752934232349,-1200.0,0.00016562,2]
[373299713,1752934232359,-300.0,0.00016562,2]
[373299714,1752934232369,-300.0,0.00016562,2]
[373299715,1752934232378,-300.0,0.00016562,2]
[373299716,1752934232387,-15084.62,0.00016563,2]
[373299717,1752934232396,-319.28,0.00016569,2]
[373299718,1752934232405,-319.28,0.00016578,2]
[373299719,1752934232414,-200.0,0.00016584,2]
[373299720,1752934232423,-319.28,0.00016586,2]
[373299721,1752934232432,-319.28,0.00016595,2]
[373299722,1752934232441,-319.28,0.00016604,2]
[373299723,1752934232450,-319.28,0.00016612,2]
[373299724,1752934232459,-319.28,0.00016621,2]
[373299725,1752934232469,-319.28,0.0001663,2]
[373299726,1752934232478,-300.0,0.0001663,2]
[373299727,1752934232488,-319.28,0.00016639,2]
[373299728,1752934232500,-319.28,0.00016647,2]
[373299729,1752934232509,-1000.0,0.00016738,2]
[373299730,1752934232519,-1046.5,0.00016757,2]
[373299731,1752934232528,-14261.01713,0.00016883,2]
[373299732,1752934232577,-3491.98287,0.00016883,2]
[373299733,1752934232587,-1200.0,0.00016971,2]
[373299734,1752934232597,-500.0,0.00016973,2]
[373299736,1752934232609,-500.0,0.00016973,2]
[373299738,1752934232619,-500.0,0.00016973,2]
[373299740,1752934232629,-500.0,0.00016973,2]
[373299742,1752934232639,-500.0,0.00016973,2]
[373299744,1752934232649,-500.0,0.00016973,2]
[373299746,1752934232659,-500.0,0.00016973,2]
[373299748,1752934232669,-239.12248551,0.00016973,2]
[373299749,1752934232678,-228.39,0.00016977,2]
[373299763,1752934232926,-14771.03367538,0.00017152,2]
[373299764,1752934232936,-431.29847476,0.00017183,2]
[373299765,1752934232945,-500.0,0.00017187,2]
[373299766,1752934232954,-500.0,0.00017187,2]
[373299767,1752934232963,-500.0,0.00017187,2]
[373299768,1752934232973,-151.0,0.00017187,2]
[373299769,1752934232982,-500.0,0.00017187,2]
[373299770,1752934232991,-151.0,0.00017187,2]
[373299771,1752934233001,-500.0,0.00017187,2]
[373299772,1752934233010,-151.0,0.00017187,2]
[373299773,1752934233019,-500.0,0.00017187,2]
[373299774,1752934233028,-151.0,0.00017187,2]
[373299775,1752934233042,-500.0,0.00017187,2]
[373299776,1752934233051,-151.0,0.00017187,2]
[373299777,1752934233060,-500.0,0.00017187,2]
[373299778,1752934233069,-151.0,0.00017187,2]
[373299779,1752934233079,-500.0,0.00017187,2]
[373299780,1752934233088,-151.0,0.00017187,2]
[373299781,1752934233098,-500.0,0.00017187,2]
[373299782,1752934233107,-151.0,0.00017187,2]
[373299783,1752934233117,-500.0,0.00017187,2]
[373299784,1752934233127,-151.0,0.00017187,2]
[373299785,1752934233136,-500.0,0.00017187,2]
[373299786,1752934233146,-151.0,0.00017187,2]
[373299787,1752934233157,-500.0,0.00017187,2]
[373299788,1752934233167,-151.0,0.00017187,2]
[373299789,1752934233179,-500.0,0.00017187,2]
[373299790,1752934233189,-151.0,0.00017187,2]
[373299791,1752934233199,-500.0,0.00017187,2]
[373299792,1752934233209,-151.0,0.00017187,2]
[373299793,1752934233218,-500.0,0.00017187,2]
[373299794,1752934233228,-151.0,0.00017187,2]
[373299795,1752934233238,-500.0,0.00017187,2]
[373299796,1752934233247,-151.0,0.00017187,2]
[373299797,1752934233257,-500.0,0.00017187,2]
[373299798,1752934233267,-277.74717907,0.00017187,2]
[373299799,1752934233277,-500.0,0.00017187,2]
[373299800,1752934233286,-500.0,0.00017187,2]
[373299801,1752934233295,-500.0,0.00017187,2]
[373299802,1752934233305,-500.0,0.00017187,2]
[373299803,1752934233315,-500.0,0.00017187,2]
[373299804,1752934233325,-500.0,0.00017187,2]
[373299805,1752934233335,-500.0,0.00017187,2]
[373299806,1752934233345,-500.0,0.00017187,2]
[373299807,1752934233355,-500.0,0.00017187,2]
[373299808,1752934233365,-151.0,0.00017187,2]
[373299809,1752934233375,-500.0,0.00017187,2]
[373299810,1752934233385,-484.02410964,0.00017187,2]
[373299811,1752934233394,-151.0,0.00017187,2]
[373299812,1752934233404,-150.99,0.00017194,2]
[373299813,1752934233413,-555.57,0.00017194,2]
[373299814,1752934233423,-1726.88,0.00017194,2]
[373299815,1752934233432,-4721.66902452,0.00017195,2]
[373299816,1752934233445,-5278.32097548,0.00017195,2]
[373299817,1752934233454,-21106.56,0.00017195,2]
[373299818,1752934233464,-4733.54706481,0.00017195,2]
[373299819,1752934233475,-7865.00293519,0.00017195,2]
[373299820,1752934233485,-5808.67,0.00017195,2]
[373299821,1752934233494,-150.99,0.00017196,2]
[373299822,1752934233504,-1491.19,0.00017196,2]
[373299823,1752934233513,-299.99,0.00017196,4]
[373299824,1752934233523,-23900.0,0.00017197,2]
[373299825,1752934233532,-150.0,0.00017252,2]
[373299826,1752934233543,-200.0,0.00017302,2]
[373299827,1752934233556,-153.21408951,0.00017334,2]
[373299828,1752934233566,-294.95757257,0.00017334,2]
[373299829,1752934233576,-150.27510418,0.00017334,2]
[373299830,1752934233587,-150.0,0.00017334,2]
[373299831,1752934233596,-150.0,0.00017334,2]
[373299832,1752934233607,-14771.0336753,0.00017446,2]
[373299833,1752934233616,-500.0,0.00017479,2]
[373299834,1752934233628,-195.0,0.000175,2]
[373299835,1752934233638,-500.0,0.00017534,2]
[373299836,1752934233648,-874.43121618,0.00017635,2]
[373299837,1752934233658,-500.0,0.00017671,2]
[373299838,1752934233668,-505.0,0.00017679,5]
[373299839,1752934233677,-250.0,0.00017736,2]
[373299840,1752934233687,-14771.0336753,0.0001774,2]
[373299841,1752934233698,-5127.848,0.000178,2]
[373299842,1752934233708,-274.0684,0.00017808,2]
[373299843,1752934233718,-826.65645,0.0001782,2]
[373299844,1752934233728,-228.39,0.00017826,2]
[373299845,1752934233738,-223.29630814,0.000179,2]
[373299846,1752934233747,-588.3472852,0.000179,2]
[373299847,1752934233757,-14697.19659399,0.000179,2]
[373299848,1752934233766,-198.06965802,0.000179,2]
[373299849,1752934233775,-826.65645,0.0001793,2]
[373299850,1752934233785,-759.809,0.00017973,2]
[373299851,1752934233795,-500.39689851,0.00017973,2]
[373299852,1752934233805,-500.0,0.00017973,2]
[373299853,1752934233815,-506.51071899,0.00017973,2]
[373299854,1752934233825,-510.43775508,0.00017973,2]
[373299855,1752934233835,-500.0,0.00017973,2]
[373299856,1752934233845,-500.0,0.00017973,2]
[373299857,1752934233855,-16536.95113817,0.00018,2]
[373299858,1752934233867,-20562.03459724,0.00018,2]
[373299859,1752934233890,-1004.32704208,0.00018,2]
[373299860,1752934233902,-2255.20520701,0.00018,2]
[373299861,1752934233918,-121620.98899747,0.00018,2]
[373299862,1752934233930,-11786.984745,0.00018,2]
[373299863,1752934233941,-808.99000001,0.00018,2]
[373299864,1752934233953,-497.48102799,0.00018,2]
[373299865,1752934233964,-403.33323327,0.00018,2]
[373299866,1752934238271,-3100.25180391,0.00018,2]
[373299867,1752934238283,-63989.38900266,0.00018,2]
[373299868,1752934238294,-6876.8940614,0.00018,2]
[373299869,1752934238316,-2550.10655349,0.00018,2]
[373300407,1752934244117,-6005.12,0.00018,2]
[373300415,1752934244180,-67799.9998,0.00018,2]
[373300428,1752934244289,-3404.35,0.00018,2]
[373300430,1752934244304,-1210.4,0.00018,2]
[373300436,1752934244349,-37712.76865754,0.00018,2]
[373300438,1752934244360,-7500.0,0.00018,2]
[373300440,1752934244371,-151.0,0.00018,2]
[373300442,1752934244381,-152.721279,0.00018,2]
[373300444,1752934244391,-151.0,0.00018,2]
[373300446,1752934244401,-151.0,0.00018,2]
[373300448,1752934244410,-151.0,0.00018,2]
[373300450,1752934244420,-151.0,0.00018,2]
[373300452,1752934244430,-151.0,0.00018,2]
[373300454,1752934244440,-151.0,0.00018,2]
[373300456,1752934244450,-151.0,0.00018,2]
[373300458,1752934244460,-151.0,0.00018,2]
[373300460,1752934244470,-151.0,0.00018,2]
[373300463,1752934244480,-151.0,0.00018,2]
[373300465,1752934244490,-151.0,0.00018,2]
[373300467,1752934244499,-217.214018,0.00018,2]
[373300469,1752934244509,-151.0,0.00018,2]
[373300471,1752934244519,-217.214018,0.00018,2]
[373300473,1752934244529,-266.84068,0.00018,2]
[373300475,1752934244539,-500.0,0.00018,2]
[373300477,1752934244548,-14771.0336753,0.00018034,2]
[373300479,1752934244562,-1000.0,0.00018047,2]
[373300481,1752934244572,-7142.856,0.00018047,2]
[373300483,1752934244582,-1000.0,0.00018047,2]
[373300485,1752934244591,-1000.0,0.00018047,2]
[373300487,1752934244603,-1000.0,0.00018047,2]
[373300489,1752934244612,-1000.0,0.00018047,2]
[373300491,1752934244622,-1000.0,0.00018047,2]
[373300493,1752934244633,-346.92554585,0.00018047,2]
[373300495,1752934244643,-600.0,0.00018047,2]
[373300497,1752934244652,-1000.0,0.00018047,2]
[373300499,1752934244662,-1000.0,0.00018047,2]
[373300501,1752934244672,-1000.0,0.00018047,2]
[373300503,1752934244681,-151.0,0.00018047,2]
[373300505,1752934244691,-1554.63782521,0.00018047,2]
[373300507,1752934244701,-1000.0,0.00018047,2]
[373300509,1752934244711,-151.0,0.00018047,2]
[373300511,1752934244722,-1000.0,0.00018047,2]
[373300513,1752934244731,-151.0,0.00018047,2]
[373300515,1752934244741,-1000.0,0.00018047,2]
[373300517,1752934244751,-151.0,0.00018047,2]
[373300519,1752934244760,-74.81137502,0.00018047,2]
[373300688,1752934246427,-92.61153869,0.00018047,2]
[373300689,1752934246437,-151.57102114,0.00018047,2]
[373300690,1752934246446,-1000.0,0.00018047,2]
[373300691,1752934246456,-151.0,0.00018047,2]
[373300692,1752934246465,-1000.0,0.00018047,2]
[373300693,1752934246475,-151.0,0.00018047,2]
[373300694,1752934246484,-1000.0,0.00018047,2]
[373300695,1752934246494,-151.0,0.00018047,2]
[373300696,1752934246503,-1000.0,0.00018047,2]
[373300697,1752934246512,-151.0,0.00018047,2]
[373300698,1752934246521,-1000.0,0.00018047,2]
[373300700,1752934246531,-151.0,0.00018047,2]
[373300701,1752934246540,-1000.0,0.00018047,2]
[373300703,1752934246551,-1000.0,0.00018047,2]
[373300705,1752934246562,-151.0,0.00018047,2]
[373300707,1752934246572,-1000.0,0.00018047,2]
[373300709,1752934246581,-151.0,0.00018047,2]
[373300711,1752934246590,-151.0,0.00018047,2]
[373300713,1752934246600,-151.0,0.00018047,2]
[373300715,1752934246610,-151.0,0.00018047,2]
[373300717,1752934246621,-151.0,0.00018047,2]
[373300719,1752934246631,-151.0,0.00018047,2]
[373300720,1752934246640,-151.0,0.00018047,2]
[373300722,1752934246649,-151.0,0.00018047,2]
[373300724,1752934246659,-151.0,0.00018047,2]
[373300726,1752934246668,-151.0,0.00018047,2]
[373300728,1752934246677,-151.0,0.00018047,2]
[373300730,1752934246686,-223.26476469,0.00018047,2]
[373300732,1752934246696,-151.0,0.00018047,2]
[373300734,1752934246705,-151.0,0.00018047,2]
[373300735,1752934246714,-500.0,0.00018047,2]
[373300737,1752934246724,-500.0,0.00018047,2]
[373300739,1752934246732,-500.0,0.00018047,2]
[373300741,1752934246742,-500.0,0.00018047,2]
[373300743,1752934246751,-500.0,0.00018047,2]
[373300745,1752934246761,-500.0,0.00018047,2]
[373300747,1752934246770,-151.0,0.00018047,2]
[373300749,1752934246779,-500.0,0.00018047,2]
[373300751,1752934246788,-151.0,0.00018047,2]
[373300753,1752934246797,-500.0,0.00018047,2]
[373300754,1752934246806,-151.0,0.00018047,2]
[373300756,1752934246816,-275.28135373,0.00018047,2]
[373300758,1752934246825,-500.0,0.00018047,2]
[373300760,1752934246834,-157.09956598,0.00018047,2]
[373300762,1752934246844,-500.0,0.00018047,2]
[373300764,1752934246853,-500.0,0.00018047,2]
[373300766,1752934246863,-207.4,0.00018047,2]
[373300768,1752934246872,-160.0,0.00018047,2]
[373300770,1752934246881,-500.0,0.00018047,2]
[373300772,1752934246891,-500.0,0.00018047,2]
[373300774,1752934246900,-500.0,0.00018047,2]
[373300776,1752934246909,-151.0,0.00018047,2]
[373300778,1752934246919,-500.0,0.00018047,2]
[373300779,1752934246928,-420.0,0.00018097,2]
[373300781,1752934246937,-1618.5340523,0.00018111,2]
[373300784,1752934246952,-530.68950051,0.00018111,2]
[373301207,1752934419516,5000.0,0.00029863,120]
[373301208,1752934447590,5000.0,0.00029863,120]
[373301209,1752934536950,315.15645857,0.000211,28]
[373301213,1752934889633,271.57,0.00013699,2]
[373301218,1752934951679,599.0,0.0002609,120]
[373301219,1752934952130,599.0,0.0002608,120]
[373301220,1752934953415,599.0,0.0002607,120]
[373301221,1752934953721,599.0,0.0002739,120]
[373301222,1752934954171,599.0,0.0002738,120]
[373301223,1752934954648,599.0,0.0002737,120]
[373301224,1752934955109,599.0,0.0002959,120]
[373301225,1752934955567,599.0,0.0002958,120]
[373301227,1752935111188,15655.05484053,0.000154,2]
[373301228,1752935129445,505.0,0.00015855,2]
[373301229,1752935168105,170.50182174,0.00015,2]
[373301243,1752935234662,8439.95406435,0.00015,2]
[373301244,1752935239295,359.0,0.0003013,120]
[373301247,1752935282000,540.0,0.00030136,120]
[373301248,1752935319231,495.5801262,0.000154,2]
[373301261,1752935420614,250.0,0.00015,2]
[373301262,1752935428450,8612.71828412,0.00030136,120]
[373301272,1752935431464,-666.0,0.00016438,2]
[373301273,1752935431473,-295.28749506,0.00016762,2]
[373301274,1752935431482,-1778.74610343,0.00016777,2]
[373301275,1752935431494,-1320.73513457,0.00016777,2]
[373301276,1752935431503,-300.0,0.00016819,2]
[373301277,1752935431513,-300.0,0.00016862,2]
[373301278,1752935431522,-1200.0,0.00016899,2]
[373301279,1752935431532,-212.47669994,0.00016899,2]
[373301280,1752935431543,-87.52330006,0.00016899,2]
[373301281,1752935431553,-2668.36040872,0.000169,2]
[373301282,1752935431565,-10344.19417059,0.000169,2]
[373301283,1752935431574,-236.59693246,0.000169,2]
[373301284,1752935431584,-154.83245859,0.000169,2]
[373301285,1752935431593,-588.3472852,0.00016904,2]
[373301286,1752935431602,-229.19293587,0.00016904,2]
[373301287,1752935431876,-550.0,0.00016972,2]
[373301288,1752935431888,-505.93443505,0.00016973,2]
[373301289,1752935431899,-500.0,0.00016973,2]
[373301290,1752935431910,-500.0,0.00016973,2]
[373301291,1752935431920,-500.0,0.00016973,2]
[373301292,1752935431930,-158.75362757,0.00016973,2]
[373301293,1752935431939,-500.0,0.00016973,2]
[373301294,1752935431952,-500.0,0.00016973,2]
[373301295,1752935431961,-500.0,0.00016973,2]
[373301296,1752935431971,-500.0,0.00016973,2]
[373301297,1752935431980,-500.0,0.00016973,2]
[373301298,1752935431990,-500.0,0.00016973,2]
[373301299,1752935432000,-243.64,0.0001699,2]
[373301300,1752935432009,-243.64,0.0001699,2]
[373301301,1752935432019,-243.64,0.0001699,2]
[373301302,1752935432029,-243.64,0.0001699,2]
[373301303,1752935432038,-243.64,0.0001699,2]
[373301304,1752935432048,-1200.0,0.00016999,2]
[373301305,1752935432057,-43770.26953137,0.00017,2]
[373301306,1752935432087,-496.084199,0.00017,2]
[373301307,1752935432107,-9785.08877072,0.00017,2]
[373301308,1752935432130,-1302.16245973,0.00017,2]
[373301309,1752935432146,-725.18023002,0.00017,2]
[373301310,1752935432158,-3224.47959999,0.00017,2]
[373301311,1752935432170,-3119.48473471,0.00017,2]
[373301312,1752935432210,-14412.90829361,0.00017,2]
[373301313,1752935435846,500.0,0.0003,120]
[373301334,1752935437332,-655.49257838,0.00017,2]
[373301335,1752935437344,-376.18300763,0.00017,2]
[373301336,1752935437445,-18633.18376228,0.00017,2]
[373301337,1752935437612,-20409.99527831,0.00017,2]
[373301531,1752935439657,-2359.1914226,0.00017,2]
[373301543,1752935439775,-58049.17669442,0.00017,2]
[373301545,1752935439784,-45836.19055298,0.00017,2]
[373301547,1752935439793,-642644.68317757,0.00017,2]
[373301549,1752935439802,-228981.12264537,0.00017,2]
[373301551,1752935439811,-190.0,0.00017054,7]
[373301553,1752935439820,-23900.0,0.00017104,2]
[373301555,1752935439830,-505.0,0.00017116,3]
[373301557,1752935439839,-13012.55457925,0.00017191,2]
[373301559,1752935439848,-500.0,0.00017294,2]
[373301561,1752935439858,-151.75210271,0.00017334,2]
[373301563,1752935439868,-236.59693244,0.00017415,2]
[373301565,1752935439880,-154.83245859,0.00017424,2]
[373301567,1752935439891,-1000.0,0.00017455,2]
[373301569,1752935439901,-2177.74,0.00017467,2]
[373301571,1752935439911,-500.0,0.0001748,2]
[373301573,1752935439921,-168.42551425,0.0001748,2]
[373301575,1752935439930,-164.70679678,0.0001748,2]
[373301577,1752935439939,-13012.55457925,0.00017481,2]
[373301579,1752935439950,-250.0,0.00017494,2]
[373301608,1752935440220,-187.0,0.000175,2]
[373301610,1752935440230,-499.29270742,0.00017521,2]
[373301612,1752935440240,-500.0,0.00017521,2]
[373301614,1752935440250,-500.0,0.00017521,2]
[373301616,1752935440260,-717.92,0.00017572,2]
[373301618,1752935440270,-229.19293585,0.00017585,2]
[373301621,1752935440279,-500.0,0.00017589,2]
[373301622,1752935440289,-172.44,0.00017643,2]
[373301624,1752935440298,-296.72,0.00017731,2]
[373301627,1752935440308,-150.0,0.00017747,2]
[373301629,1752935440318,-1746.14865,0.00017748,2]
[373301631,1752935440327,-500.0,0.00017753,2]
[373301632,1752935440336,-13012.55457925,0.00017772,2]
[373301634,1752935440346,-186.11707167,0.0001778,2]
[373301636,1752935440355,-200.0,0.00017782,2]
[373301638,1752935440365,-151.0,0.0001779,2]
[373301640,1752935440375,-158.50746025,0.0001779,2]
[373301642,1752935440385,-500.0,0.0001779,2]
[373301644,1752935440395,-500.0,0.0001779,2]
[373301647,1752935440406,-500.0,0.0001779,2]
[373301648,1752935440415,-500.0,0.0001779,2]
[373301650,1752935440425,-500.0,0.0001779,2]
[373301652,1752935440434,-500.0,0.0001779,2]
[373301654,1752935440443,-479.08177798,0.0001779,2]
[373301656,1752935440453,-191.41277261,0.0001779,2]